{"text_format":"3","workbook":"xlsx","n_sheets":6,"sheets":["Dnevnik prodajnih klicev","Podatki za stik s stranko","Pred klicem","Prvi klic","Informacije o prodaji","Nadaljnja obravnava"],"not_rendered":{"defined_names":14},"read":"whole","date_system":"1900"}

{"sheet":"Dnevnik prodajnih klicev","index":0,"n_rows":13,"n_cols":7,"rows_kept":13}
[null," Ime podjetja"]
[null,"Dnevnik prodajnih klicev"]
[null,"Klic. št.","Stranka","Podjetje","Datum","Ura","Opombe"]
[null,1,"Franc Novak",{"$f":"IF(DnevnikProdajnihKlicev[[#This Row],[Stranka]]=\"\",\"\",IFERROR(VLOOKUP(DnevnikProdajnihKlicev[[#This Row],[Stranka]],PodatkiZaStikSStranko[],2,0),\"Not Found\"))","v":"Korporacija Aluminij"},{"$f":"TODAY()-5","v":"2017-06-11"},"08:30:00"]
[null,2,"Janez Horvat",{"$f":"IF(DnevnikProdajnihKlicev[[#This Row],[Stranka]]=\"\",\"\",IFERROR(VLOOKUP(DnevnikProdajnihKlicev[[#This Row],[Stranka]],PodatkiZaStikSStranko[],2,0),\"Not Found\"))","v":"Korporacija Železarna"},{"$f":"TODAY()-5","v":"2017-06-11"},"09:00:00"]
[null,3,"Anton Kovačič",{"$f":"IF(DnevnikProdajnihKlicev[[#This Row],[Stranka]]=\"\",\"\",IFERROR(VLOOKUP(DnevnikProdajnihKlicev[[#This Row],[Stranka]],PodatkiZaStikSStranko[],2,0),\"Not Found\"))","v":"Trgovina severni veter"},"2017-06-11","09:30:00"]
[null,4,"Ivan Krajnc",{"$f":"IF(DnevnikProdajnihKlicev[[#This Row],[Stranka]]=\"\",\"\",IFERROR(VLOOKUP(DnevnikProdajnihKlicev[[#This Row],[Stranka]],PodatkiZaStikSStranko[],2,0),\"Not Found\"))","v":"Založba Postojna"},"2017-06-11","10:00:00"]
[null,5,"Jožef Zupančič",{"$f":"IF(DnevnikProdajnihKlicev[[#This Row],[Stranka]]=\"\",\"\",IFERROR(VLOOKUP(DnevnikProdajnihKlicev[[#This Row],[Stranka]],PodatkiZaStikSStranko[],2,0),\"Not Found\"))","v":"Marijina potovanja"},"2017-06-11","10:30:00"]
[null,6,"Franc Novak",{"$f":"IF(DnevnikProdajnihKlicev[[#This Row],[Stranka]]=\"\",\"\",IFERROR(VLOOKUP(DnevnikProdajnihKlicev[[#This Row],[Stranka]],PodatkiZaStikSStranko[],2,0),\"Not Found\"))","v":"Korporacija Aluminij"},{"$f":"TODAY()-3","v":"2017-06-13"},"11:00:00"]
[null,7,"Janez Horvat",{"$f":"IF(DnevnikProdajnihKlicev[[#This Row],[Stranka]]=\"\",\"\",IFERROR(VLOOKUP(DnevnikProdajnihKlicev[[#This Row],[Stranka]],PodatkiZaStikSStranko[],2,0),\"Not Found\"))","v":"Korporacija Železarna"},{"$f":"TODAY()-3","v":"2017-06-13"},"11:30:00"]
[null,8,"Franc Novak",{"$f":"IF(DnevnikProdajnihKlicev[[#This Row],[Stranka]]=\"\",\"\",IFERROR(VLOOKUP(DnevnikProdajnihKlicev[[#This Row],[Stranka]],PodatkiZaStikSStranko[],2,0),\"Not Found\"))","v":"Korporacija Aluminij"},{"$f":"TODAY()-1","v":"2017-06-15"},"12:00:00"]
[null,9,"Jožef Zupančič",{"$f":"IF(DnevnikProdajnihKlicev[[#This Row],[Stranka]]=\"\",\"\",IFERROR(VLOOKUP(DnevnikProdajnihKlicev[[#This Row],[Stranka]],PodatkiZaStikSStranko[],2,0),\"Not Found\"))","v":"Marijina potovanja"},{"$f":"TODAY()-1","v":"2017-06-15"},"12:30:00"]
[null,10,"Jožef Zupančič",{"$f":"IF(DnevnikProdajnihKlicev[[#This Row],[Stranka]]=\"\",\"\",IFERROR(VLOOKUP(DnevnikProdajnihKlicev[[#This Row],[Stranka]],PodatkiZaStikSStranko[],2,0),\"Not Found\"))","v":"Marijina potovanja"},{"$f":"TODAY()","v":"2017-06-16"},"13:00:00"]

{"sheet":"Podatki za stik s stranko","index":1,"n_rows":8,"n_cols":8,"rows_kept":8}
[null,{"$f":"ImePodjetja","v":" Ime podjetja"}]
[null,"Podatki za stik s stranko"]
[null,"Ime stranke","Ime podjetja","Naslov","Mesto, koda države","Primarni telefon","Sekundarni telefon","E-pošta"]
[null,"Janez Horvat","Korporacija Železarna","Glavna ulica 100","Ljubljana, SVN 705","(01) 555-135","(01) 555-0136","jhorvat@zelezarnakorp.com"]
[null,"Ivan Krajnc","Založba Postojna","Stranska ulica 5","Maribor, SVN 705","(02) 555-0198","(02) 555-0199","ikrajnc@zalozbaljubljana.com"]
[null,"Jožef Zupančič","Marijina potovanja","Marčna ulica 98","Koper, SVN 705","(06) 555-0125","(06) 555-0126","jzupancic@marijinopotovanje.com"]
[null,"Anton Kovačič","Trgovina severni veter","Mala ulica 1","Celje, SVN 705","(03) 555-0175","(03) 555-0176","akovacic@trgovinaseverniveter.com"]
[null,"Franc Novak","Korporacija Aluminij","Glavni trg 123","Novo mesto, SVN 705","(06) 555-0150","(06) 555-0151","franc@aluminij.com"]

{"sheet":"Pred klicem","index":2,"n_rows":13,"n_cols":3,"rows_kept":13}
[null,{"$f":"ImePodjetja","v":" Ime podjetja"}]
[null,"Kontrolni seznam prodaje"]
[null,"Potrditveno polje","Pred klicem"]
[null,null,"Pregled zgodovine stranke"]
[null,null,"Pregled prednostnih nalog in prodajne strategije za stranko"]
[null,null,"Pregled prednostnih nalog in prodajne strategije"]
[null,null,"Dodaj element"]
[null,null,"Dodaj element"]
[null,null,"Dodaj element"]
[null,null,"Dodaj element"]
[null,null,"Dodaj element"]
[null,null,"Dodaj element"]
[null,null,"Dodaj element"]

{"sheet":"Prvi klic","index":3,"n_rows":13,"n_cols":3,"rows_kept":13}
[null,{"$f":"ImePodjetja","v":" Ime podjetja"}]
[null,"Kontrolni seznam prodaje"]
[null,"Potrditveno polje","Prvi klic"]
[null,null,"Neposreden klic ustrezne osebe"]
[null,null,"Jasen uvod"]
[null,null,"Dodaj element"]
[null,null,"Dodaj element"]
[null,null,"Dodaj element"]
[null,null,"Dodaj element"]
[null,null,"Dodaj element"]
[null,null,"Dodaj element"]
[null,null,"Dodaj element"]
[null,null,"Dodaj element"]

{"sheet":"Informacije o prodaji","index":4,"n_rows":13,"n_cols":3,"rows_kept":13}
[null,{"$f":"ImePodjetja","v":" Ime podjetja"}]
[null,"Kontrolni seznam prodaje"]
[null,"Potrditveno polje","Informacije o prodaji"]
[null,null,"Jasen in privlačen uvod za izdelek/storitev"]
[null,null,"Pokritje osnov"]
[null,null,"Omemba prisotnosti v spletu (npr. spletno mesto, družabna omrežja)"]
[null,null,"Dodaj element"]
[null,null,"Dodaj element"]
[null,null,"Dodaj element"]
[null,null,"Dodaj element"]
[null,null,"Dodaj element"]
[null,null,"Dodaj element"]
[null,null,"Dodaj element"]

{"sheet":"Nadaljnja obravnava","index":5,"n_rows":13,"n_cols":3,"rows_kept":13}
[null,{"$f":"ImePodjetja","v":" Ime podjetja"}]
[null,"Kontrolni seznam prodaje"]
[null,"Potrditveno polje","Informacije o nadaljnji obravnavi"]
[null,null,"Podatki za stik s stranko"]
[null,null,"Osebni podatki o stranki"]
[null,null,"Prioritete stranke"]
[null,null,"Prestavljen stik?"]
[null,null,"Prodaja opravljena?"]
[null,null,"Dodaj element"]
[null,null,"Dodaj element"]
[null,null,"Dodaj element"]
[null,null,"Dodaj element"]
[null,null,"Dodaj element"]